[Event "Live Chess"]
[Site "Chess.com"]
[Date "2024.06.01"]
[Round "-"]
[White "DoctorMantisTobogganMD"]
[Black "f4nomore"]
[Result "1-0"]
[WhiteElo "2176"]
[BlackElo "1202"]
[TimeControl "300"]
[EndTime "12:24:03 PDT"]
[Termination "DoctorMantisTobogganMD won on time"]

1. e4 {[%clk 0:04:53.3]} 1... g6 {[%clk 0:04:58.8]} 2. Nc3 {[%clk 0:04:51.9]}
2... Bg7 {[%clk 0:04:57.5]} 3. Bc4 {[%clk 0:04:51.6]} 3... e6 {[%clk 0:04:55.7]}
4. Nge2 {[%clk 0:04:51]} 4... d6 {[%clk 0:04:54.7]} 5. Bb3 {[%clk 0:04:50.5]}
5... Ne7 {[%clk 0:04:52.7]} 6. O-O {[%clk 0:04:50.4]} 6... O-O {[%clk
0:04:51.2]} 7. d3 {[%clk 0:04:50.3]} 7... Nd7 {[%clk 0:04:49.5]} 8. f4 {[%clk
0:04:48.7]} 8... c5 {[%clk 0:04:48.1]} 9. Ng3 {[%clk 0:04:48.1]} 9... a6 {[%clk
0:04:44]} 10. f5 {[%clk 0:04:37.3]} 10... exf5 {[%clk 0:04:41]} 11. exf5 {[%clk
0:04:37.2]} 11... b5 {[%clk 0:04:33.7]} 12. Bg5 {[%clk 0:04:34.1]} 12... c4
{[%clk 0:04:26.4]} 13. dxc4 {[%clk 0:04:31.4]} 13... bxc4 {[%clk 0:04:24.3]} 14.
Bxc4 {[%clk 0:04:31.3]} 14... Ne5 {[%clk 0:04:15.4]} 15. Bb3 {[%clk 0:04:28.9]}
15... Bb7 {[%clk 0:04:04.8]} 16. f6 {[%clk 0:04:23.8]} 16... Nf5 {[%clk
0:03:58.2]} 17. fxg7 {[%clk 0:04:21.4]} 17... Qxg5 {[%clk 0:03:55.3]} 18.
gxf8=Q+ {[%clk 0:04:20.3]} 18... Rxf8 {[%clk 0:03:52.9]} 19. Rxf5 {[%clk
0:04:17.3]} 19... gxf5 {[%clk 0:03:49.7]} 20. Qxd6 {[%clk 0:04:13.1]} 20... Qe3+
{[%clk 0:03:31.9]} 21. Kh1 {[%clk 0:04:10.1]} 21... Ng4 {[%clk 0:03:22.9]} 22.
Rf1 {[%clk 0:03:54.3]} 22... Nf2+ {[%clk 0:03:16.6]} 23. Rxf2 {[%clk 0:03:53.6]}
23... Qxf2 {[%clk 0:03:14.3]} 24. Bxf7+ {[%clk 0:03:14.6]} 24... Rxf7 {[%clk
0:02:58.4]} 25. Qd8+ {[%clk 0:03:00.9]} 25... Rf8 {[%clk 0:02:52.7]} 26. Qg5+
{[%clk 0:02:45.6]} 26... Kh8 {[%clk 0:02:50.4]} 27. Nge2 {[%clk 0:02:43.5]}
27... Qe1+ {[%clk 0:02:08.3]} 28. Ng1 {[%clk 0:02:41.7]} 28... Qe5 {[%clk
0:01:54.3]} 29. Qd2 {[%clk 0:02:19.4]} 29... Rg8 {[%clk 0:01:46.9]} 30. Nf3
{[%clk 0:02:17.9]} 30... Bxf3 {[%clk 0:01:21.9]} 31. gxf3 {[%clk 0:02:17.8]}
31... Qc5 {[%clk 0:01:19.9]} 32. Ne2 {[%clk 0:02:09]} 32... Qf2 {[%clk
0:01:09.4]} 33. Qd4+ {[%clk 0:02:06.7]} 33... Qxd4 {[%clk 0:01:05.7]} 34. Nxd4
{[%clk 0:02:06.6]} 34... Rb8 {[%clk 0:01:02.4]} 35. b3 {[%clk 0:02:03.7]} 35...
Rb4 {[%clk 0:00:59.5]} 36. c4 {[%clk 0:02:01.3]} 36... f4 {[%clk 0:00:56.9]} 37.
Kg2 {[%clk 0:01:59.1]} 37... Kg7 {[%clk 0:00:54]} 38. Kh3 {[%clk 0:01:58]} 38...
Rb6 {[%clk 0:00:51.2]} 39. Kg4 {[%clk 0:01:56.6]} 39... Rf6 {[%clk 0:00:46]} 40.
b4 {[%clk 0:01:51.5]} 40... h6 {[%clk 0:00:42.6]} 41. c5 {[%clk 0:01:50.2]}
41... Rf8 {[%clk 0:00:37.5]} 42. a4 {[%clk 0:01:48.7]} 42... Kg6 {[%clk
0:00:34.1]} 43. h4 {[%clk 0:01:41.1]} 43... h5+ {[%clk 0:00:32.7]} 44. Kh3
{[%clk 0:01:40.8]} 44... Rd8 {[%clk 0:00:26.9]} 45. Ne6 {[%clk 0:01:38.7]} 45...
Rb8 {[%clk 0:00:23.6]} 46. Nxf4+ {[%clk 0:01:34.8]} 46... Kf5 {[%clk 0:00:21.2]}
47. Nd5 {[%clk 0:01:34.7]} 47... Ke5 {[%clk 0:00:14.7]} 48. Nb6 {[%clk
0:01:33.2]} 48... Kd4 {[%clk 0:00:10.7]} 49. Kg3 {[%clk 0:01:29.6]} 49... Kc3
{[%clk 0:00:07.3]} 50. b5 {[%clk 0:01:29.1]} 50... axb5 {[%clk 0:00:05.4]} 51.
axb5 {[%clk 0:01:29]} 51... Kb4 {[%clk 0:00:02.7]} 52. Kf4 {[%clk 0:01:27.9]}
52... Kxb5 {[%clk 0:00:01]} 53. Kg5 {[%clk 0:01:26.7]} 1-0

[Event "Live Chess"]
[Site "Chess.com"]
[Date "2024.06.01"]
[Round "-"]
[White "Pandreq"]
[Black "Cruiseylee78"]
[Result "1-0"]
[WhiteElo "1144"]
[BlackElo "1692"]
[TimeControl "300"]
[EndTime "12:24:05 PDT"]
[Termination "Pandreq won by checkmate"]

1. d4 {[%clk 0:04:54.1]} 1... d6 {[%clk 0:04:59.9]} 2. c4 {[%clk 0:04:53.1]}
2... Nd7 {[%clk 0:04:59.5]} 3. Nc3 {[%clk 0:04:52.5]} 3... e5 {[%clk 0:04:59.4]}
4. d5 {[%clk 0:04:51.5]} 4... Ngf6 {[%clk 0:04:58.3]} 5. e4 {[%clk 0:04:48]}
5... h6 {[%clk 0:04:57.6]} 6. Nf3 {[%clk 0:04:46.7]} 6... Be7 {[%clk 0:04:57.1]}
7. Bd3 {[%clk 0:04:45.9]} 7... c6 {[%clk 0:04:56.4]} 8. O-O {[%clk 0:04:45.2]}
8... cxd5 {[%clk 0:04:56.3]} 9. cxd5 {[%clk 0:04:44.2]} 9... Nf8 {[%clk
0:04:52]} 10. Be3 {[%clk 0:04:42.5]} 10... g5 {[%clk 0:04:51.2]} 11. Rc1 {[%clk
0:04:39.6]} 11... a6 {[%clk 0:04:49.9]} 12. Na4 {[%clk 0:04:35.4]} 12... b5
{[%clk 0:04:48.5]} 13. Nb6 {[%clk 0:04:31.1]} 13... Rb8 {[%clk 0:04:46.2]} 14.
Rc6 {[%clk 0:04:11.3]} 14... Bd7 {[%clk 0:04:25.6]} 15. Nxd7 {[%clk 0:04:00.5]}
15... N8xd7 {[%clk 0:04:23.7]} 16. Qc2 {[%clk 0:03:49.5]} 16... Nf8 {[%clk
0:03:48.2]} 17. Ba7 {[%clk 0:03:45.5]} 17... Rb7 {[%clk 0:03:30.5]} 18. Rc8
{[%clk 0:03:41.3]} 18... Qxc8 {[%clk 0:03:27.4]} 19. Qxc8+ {[%clk 0:03:39.9]}
19... Bd8 {[%clk 0:03:08.4]} 20. Qxb7 {[%clk 0:03:36.8]} 20... Ng6 {[%clk
0:03:06]} 21. Qxa6 {[%clk 0:03:33.9]} 21... O-O {[%clk 0:03:02.8]} 22. Qxb5
{[%clk 0:03:21.3]} 22... Nf4 {[%clk 0:02:58.2]} 23. Re1 {[%clk 0:03:15.3]} 23...
Nxd3 {[%clk 0:02:54.7]} 24. Qxd3 {[%clk 0:03:13.9]} 24... Be7 {[%clk 0:02:49.2]}
25. a3 {[%clk 0:03:06.1]} 25... Ra8 {[%clk 0:02:45.9]} 26. Be3 {[%clk
0:02:58.5]} 26... Rd8 {[%clk 0:02:42.1]} 27. b4 {[%clk 0:02:55.7]} 27... Kg7
{[%clk 0:02:38.9]} 28. Bb6 {[%clk 0:02:49.6]} 28... Rb8 {[%clk 0:02:35.4]} 29.
Qe3 {[%clk 0:02:43.1]} 29... Nd7 {[%clk 0:02:32.6]} 30. Bc7 {[%clk 0:02:33.5]}
30... Ra8 {[%clk 0:02:29.8]} 31. Ra1 {[%clk 0:02:24.7]} 31... g4 {[%clk
0:02:26.7]} 32. Nd2 {[%clk 0:02:20.8]} 32... f5 {[%clk 0:02:23]} 33. exf5 {[%clk
0:02:16.7]} 33... Nf6 {[%clk 0:02:20]} 34. Nc4 {[%clk 0:02:04.4]} 34... Nxd5
{[%clk 0:02:16.8]} 35. Qg3 {[%clk 0:01:54.7]} 35... Nxc7 {[%clk 0:02:13.6]} 36.
Qxg4+ {[%clk 0:01:51.6]} 36... Kf8 {[%clk 0:02:10.4]} 37. Rc1 {[%clk 0:01:41]}
37... Bg5 {[%clk 0:02:07]} 38. Rc3 {[%clk 0:01:37.4]} 38... Nb5 {[%clk
0:02:01.1]} 39. Rd3 {[%clk 0:01:31.7]} 39... e4 {[%clk 0:01:57.4]} 40. Rd5
{[%clk 0:01:22.9]} 40... Nc3 {[%clk 0:01:54.5]} 41. Rxd6 {[%clk 0:01:18.3]}
41... e3 {[%clk 0:01:51.4]} 42. Re6 {[%clk 0:01:02.7]} 42... Nb5 {[%clk
0:01:46.5]} 43. fxe3 {[%clk 0:00:59]} 43... Nc7 {[%clk 0:01:42.8]} 44. Rc6
{[%clk 0:00:52.1]} 44... Nb5 {[%clk 0:01:39.6]} 45. f6 {[%clk 0:00:46.9]} 45...
Rd8 {[%clk 0:01:35.3]} 46. Rc8 {[%clk 0:00:44.9]} 46... Rxc8 {[%clk 0:01:32.5]}
47. Qxc8+ {[%clk 0:00:43.5]} 47... Kf7 {[%clk 0:01:31.3]} 48. Qb7+ {[%clk
0:00:41.3]} 48... Kxf6 {[%clk 0:01:28.2]} 49. Qxb5 {[%clk 0:00:40.2]} 49... h5
{[%clk 0:01:25.4]} 50. Qe5+ {[%clk 0:00:38.5]} 50... Kf7 {[%clk 0:01:19.3]} 51.
Qxg5 {[%clk 0:00:37]} 51... Ke8 {[%clk 0:01:17.1]} 52. Qg7 {[%clk 0:00:35.1]}
52... Kd8 {[%clk 0:01:14.7]} 53. Ne5 {[%clk 0:00:29.6]} 53... Kc8 {[%clk
0:01:14.6]} 54. Qd7+ {[%clk 0:00:26.6]} 54... Kb8 {[%clk 0:01:14.2]} 55. Nc6+
{[%clk 0:00:23.3]} 55... Ka8 {[%clk 0:01:14.1]} 56. Qa7# {[%clk 0:00:22.2]} 1-0

[Event "Live Chess"]
[Site "Chess.com"]
[Date "2024.06.01"]
[Round "-"]
[White "GwaryTek"]
[Black "TigerTank70"]
[Result "1/2-1/2"]
[WhiteElo "1964"]
[BlackElo "2187"]
[TimeControl "300"]
[EndTime "12:24:06 PDT"]
[Termination "Game drawn by agreement"]

1. d4 {[%clk 0:04:56.5]} 1... d5 {[%clk 0:04:57.5]} 2. c4 {[%clk 0:04:54.6]}
2... e5 {[%clk 0:04:56.8]} 3. dxe5 {[%clk 0:04:52.1]} 3... d4 {[%clk 0:04:56.7]}
4. Nf3 {[%clk 0:04:51.2]} 4... Nc6 {[%clk 0:04:55.9]} 5. g3 {[%clk 0:04:49.5]}
5... Bg4 {[%clk 0:04:54]} 6. Nbd2 {[%clk 0:04:47.4]} 6... Qd7 {[%clk 0:04:53.4]}
7. Bg2 {[%clk 0:04:43.6]} 7... Nge7 {[%clk 0:04:51.5]} 8. h3 {[%clk 0:04:42.2]}
8... Be6 {[%clk 0:04:49]} 9. a3 {[%clk 0:04:39.6]} 9... Ng6 {[%clk 0:04:47.9]}
10. b4 {[%clk 0:04:32]} 10... Ncxe5 {[%clk 0:04:40.6]} 11. Bb2 {[%clk
0:04:19.6]} 11... c5 {[%clk 0:04:30.1]} 12. Nxe5 {[%clk 0:03:36.8]} 12... Nxe5
{[%clk 0:04:23.4]} 13. bxc5 {[%clk 0:03:24.7]} 13... Bxc5 {[%clk 0:04:23.3]} 14.
Nb3 {[%clk 0:03:15.1]} 14... Bb6 {[%clk 0:04:00.7]} 15. c5 {[%clk 0:02:33.1]}
15... Bxb3 {[%clk 0:03:57.4]} 16. Qxb3 {[%clk 0:02:31.5]} 16... Ba5+ {[%clk
0:03:41.3]} 17. Kf1 {[%clk 0:02:22.4]} 17... Nc6 {[%clk 0:03:39]} 18. Kg1 {[%clk
0:02:09.9]} 18... O-O {[%clk 0:03:33.4]} 19. Kh2 {[%clk 0:02:08.5]} 19... Rfe8
{[%clk 0:03:18.1]} 20. Bf3 {[%clk 0:02:00.8]} 20... Rab8 {[%clk 0:03:05.8]} 21.
Rad1 {[%clk 0:01:42.6]} 21... Qf5 {[%clk 0:03:03.2]} 22. Kg2 {[%clk 0:01:36.2]}
22... Qxc5 {[%clk 0:02:50.5]} 23. a4 {[%clk 0:01:07]} 23... Bb6 {[%clk
0:02:43.3]} 24. Qb5 {[%clk 0:01:03.1]} 24... Rbd8 {[%clk 0:02:32.1]} 25. Qxc5
{[%clk 0:00:39.9]} 25... Bxc5 {[%clk 0:02:30.9]} 26. Rc1 {[%clk 0:00:34.4]}
26... Bb6 {[%clk 0:02:16.3]} 27. Rhd1 {[%clk 0:00:26.7]} 27... h6 {[%clk
0:01:53.4]} 28. Kf1 {[%clk 0:00:20.3]} 28... Re6 {[%clk 0:00:59]} 29. Rc4 {[%clk
0:00:13.6]} 29... d3 {[%clk 0:00:52.3]} 30. Rxd3 {[%clk 0:00:07.8]} 30... Rxd3
{[%clk 0:00:40.9]} 31. exd3 {[%clk 0:00:07.7]} 31... Ne5 {[%clk 0:00:35.5]} 32.
Rc8+ {[%clk 0:00:06.1]} 32... Kh7 {[%clk 0:00:33.1]} 33. Be4+ {[%clk 0:00:05.6]}
33... g6 {[%clk 0:00:30.8]} 34. f4 {[%clk 0:00:04.2]} 1/2-1/2

[Event "Live Chess"]
[Site "Chess.com"]
[Date "2024.06.01"]
[Round "-"]
[White "uselessduffer"]
[Black "stevochess11"]
[Result "1-0"]
[WhiteElo "2415"]
[BlackElo "1674"]
[TimeControl "300"]
[EndTime "12:24:06 PDT"]
[Termination "uselessduffer won by checkmate"]

1. e4 {[%clk 0:04:54.9]} 1... c5 {[%clk 0:04:57.7]} 2. Nc3 {[%clk 0:04:53.9]}
2... g6 {[%clk 0:04:56.2]} 3. f4 {[%clk 0:04:51.4]} 3... Nc6 {[%clk 0:04:54.8]}
4. Nf3 {[%clk 0:04:49.7]} 4... Bg7 {[%clk 0:04:53.6]} 5. Bb5 {[%clk 0:04:49.3]}
5... Nd4 {[%clk 0:04:51.8]} 6. Bd3 {[%clk 0:04:45.9]} 6... e6 {[%clk 0:04:45.3]}
7. Nxd4 {[%clk 0:04:44]} 7... cxd4 {[%clk 0:04:43.7]} 8. Nb5 {[%clk 0:04:42.4]}
8... d6 {[%clk 0:04:40.3]} 9. c3 {[%clk 0:04:40.3]} 9... dxc3 {[%clk 0:04:37.4]}
10. bxc3 {[%clk 0:04:35.9]} 10... Ne7 {[%clk 0:04:32.2]} 11. Ba3 {[%clk
0:04:30.3]} 11... O-O {[%clk 0:04:18.1]} 12. Nxd6 {[%clk 0:04:26.2]} 12... Nc6
{[%clk 0:04:06.3]} 13. O-O {[%clk 0:04:03.2]} 13... Qb6+ {[%clk 0:03:59.1]} 14.
Kh1 {[%clk 0:04:00.8]} 14... Rd8 {[%clk 0:03:54.2]} 15. Qf3 {[%clk 0:03:41.3]}
15... Ne7 {[%clk 0:03:37]} 16. Rab1 {[%clk 0:03:22.6]} 16... Qa5 {[%clk
0:03:32.6]} 17. Bb4 {[%clk 0:03:03.4]} 17... Qxa2 {[%clk 0:03:22.3]} 18. Ra1
{[%clk 0:02:58.2]} 18... Qxd2 {[%clk 0:02:55.2]} 19. Rf2 {[%clk 0:02:35.4]}
19... Bxc3 {[%clk 0:02:28]} 20. Rxd2 {[%clk 0:02:33.6]} 20... Bxd2 {[%clk
0:02:25.9]} 21. Bxd2 {[%clk 0:02:28.5]} 21... Rxd6 {[%clk 0:02:24.6]} 22. Bb4
{[%clk 0:02:24.9]} 22... Rd7 {[%clk 0:02:22.3]} 23. f5 {[%clk 0:02:04]} 23...
Nc6 {[%clk 0:02:12.9]} 24. fxe6 {[%clk 0:02:01.4]} 24... fxe6 {[%clk 0:02:11.2]}
25. Qf8# {[%clk 0:02:00.6]} 1-0

[Event "Live Chess"]
[Site "Chess.com"]
[Date "2024.06.01"]
[Round "-"]
[White "Richardallis"]
[Black "DarranAS"]
[Result "1-0"]
[WhiteElo "2034"]
[BlackElo "1477"]
[TimeControl "300"]
[EndTime "12:24:17 PDT"]
[Termination "Richardallis won by resignation"]

1. d4 {[%clk 0:04:54.8]} 1... d5 {[%clk 0:04:54.6]} 2. Nf3 {[%clk 0:04:53.8]}
2... Nf6 {[%clk 0:04:47.8]} 3. Bg5 {[%clk 0:04:52.7]} 3... c5 {[%clk 0:04:36.2]}
4. c3 {[%clk 0:04:50.9]} 4... cxd4 {[%clk 0:04:29.9]} 5. Nxd4 {[%clk 0:04:47.8]}
5... Nc6 {[%clk 0:04:25.1]} 6. e3 {[%clk 0:04:46.2]} 6... Nxd4 {[%clk 0:04:23]}
7. Qxd4 {[%clk 0:04:44.2]} 7... Bf5 {[%clk 0:04:13.5]} 8. Bxf6 {[%clk
0:04:36.1]} 8... exf6 {[%clk 0:04:06.6]} 9. Bb5+ {[%clk 0:04:35]} 9... Bd7
{[%clk 0:03:59.7]} 10. Qxd5 {[%clk 0:04:33.3]} 10... Rc8 {[%clk 0:03:53.8]} 11.
O-O {[%clk 0:04:28.4]} 11... Rc5 {[%clk 0:03:51.1]} 12. Bxd7+ {[%clk 0:04:23.3]}
12... Qxd7 {[%clk 0:03:42.5]} 13. Qxd7+ {[%clk 0:04:21.4]} 13... Kxd7 {[%clk
0:03:42.4]} 14. Rd1+ {[%clk 0:04:19.9]} 14... Kc7 {[%clk 0:03:36.5]} 15. Nd2
{[%clk 0:04:16.6]} 15... Bd6 {[%clk 0:03:30]} 16. Ne4 {[%clk 0:04:14.7]} 16...
Rc6 {[%clk 0:03:25.8]} 17. Rxd6 {[%clk 0:04:12.6]} 17... Rxd6 {[%clk 0:03:24]}
18. Nxd6 {[%clk 0:04:12]} 18... Kxd6 {[%clk 0:03:23.8]} 19. Rd1+ {[%clk
0:04:11.4]} 19... Kc6 {[%clk 0:03:18.5]} 20. Kf1 {[%clk 0:04:10]} 20... Re8
{[%clk 0:03:14.6]} 21. Ke2 {[%clk 0:04:08.4]} 21... f5 {[%clk 0:03:13.9]} 22.
Rd4 {[%clk 0:04:06.7]} 22... g5 {[%clk 0:03:07.7]} 23. h4 {[%clk 0:04:03]} 23...
h6 {[%clk 0:03:04.6]} 24. Kf3 {[%clk 0:04:01.4]} 24... b5 {[%clk 0:02:50.2]} 25.
a4 {[%clk 0:03:59.7]} 25... a6 {[%clk 0:02:44.6]} 26. a5 {[%clk 0:03:58.4]}
26... Re5 {[%clk 0:02:28.6]} 27. Rd8 {[%clk 0:03:54.9]} 27... Re6 {[%clk
0:02:22.1]} 28. b4 {[%clk 0:03:50.3]} 28... Kc7 {[%clk 0:02:17.5]} 29. Ra8
{[%clk 0:03:45]} 29... Kb7 {[%clk 0:02:15.8]} 30. Rf8 {[%clk 0:03:44.1]} 30...
Re7 {[%clk 0:02:13.3]} 31. hxg5 {[%clk 0:03:38.9]} 31... hxg5 {[%clk 0:02:10.5]}
32. Rg8 {[%clk 0:03:38.2]} 32... g4+ {[%clk 0:02:08.8]} 33. Kf4 {[%clk
0:03:36.7]} 33... Rd7 {[%clk 0:02:01.1]} 34. Kxf5 {[%clk 0:03:34.4]} 34... Rd3
{[%clk 0:01:59]} 35. Rf8 {[%clk 0:03:29.1]} 35... Rxc3 {[%clk 0:01:56.2]} 36.
Rxf7+ {[%clk 0:03:27.4]} 36... Kc6 {[%clk 0:01:51.9]} 37. Kxg4 {[%clk
0:03:19.9]} 37... Rc4+ {[%clk 0:01:50.1]} 38. Rf4 {[%clk 0:03:17.8]} 1-0

[Event "Live Chess"]
[Site "Chess.com"]
[Date "2024.06.01"]
[Round "-"]
[White "Silverback7829"]
[Black "Zhevzh1k7"]
[Result "0-1"]
[WhiteElo "977"]
[BlackElo "1110"]
[TimeControl "300"]
[EndTime "12:24:24 PDT"]
[Termination "Zhevzh1k7 won by checkmate"]

1. d4 {[%clk 0:04:56.9]} 1... Nf6 {[%clk 0:04:58.3]} 2. Nf3 {[%clk 0:04:55]}
2... e6 {[%clk 0:04:57.1]} 3. Nc3 {[%clk 0:04:52.6]} 3... d5 {[%clk 0:04:54.9]}
4. e3 {[%clk 0:04:49.9]} 4... c6 {[%clk 0:04:53.4]} 5. Bd3 {[%clk 0:04:45.4]}
5... Nbd7 {[%clk 0:04:52.4]} 6. Bd2 {[%clk 0:04:39.9]} 6... Bb4 {[%clk
0:04:49.7]} 7. a3 {[%clk 0:04:36.9]} 7... Ba5 {[%clk 0:04:48]} 8. O-O {[%clk
0:04:35]} 8... O-O {[%clk 0:04:46]} 9. Ng5 {[%clk 0:04:29.3]} 9... b5 {[%clk
0:04:31.4]} 10. a4 {[%clk 0:04:24.3]} 10... b4 {[%clk 0:04:27.8]} 11. Ne2 {[%clk
0:04:20.2]} 11... Bb7 {[%clk 0:04:24.1]} 12. Nf4 {[%clk 0:04:13.7]} 12... Re8
{[%clk 0:04:13.7]} 13. Qe2 {[%clk 0:04:10]} 13... e5 {[%clk 0:04:07.6]} 14. Nfh3
{[%clk 0:04:03.6]} 14... exd4 {[%clk 0:03:56.4]} 15. exd4 {[%clk 0:04:01.8]}
15... Rxe2 {[%clk 0:03:54.2]} 16. Bxe2 {[%clk 0:03:59.3]} 16... c5 {[%clk
0:03:47.6]} 17. dxc5 {[%clk 0:03:55.9]} 17... Nxc5 {[%clk 0:03:46.2]} 18. c3
{[%clk 0:03:51.6]} 18... Nb3 {[%clk 0:03:37]} 19. Rad1 {[%clk 0:03:45.5]} 19...
Nxd2 {[%clk 0:03:35.1]} 20. Rxd2 {[%clk 0:03:43.6]} 20... bxc3 {[%clk
0:03:34.1]} 21. Rd3 {[%clk 0:03:37.9]} 21... cxb2 {[%clk 0:03:31.6]} 22. Rb3
{[%clk 0:03:31.3]} 22... Bc6 {[%clk 0:03:20.7]} 23. Rxb2 {[%clk 0:03:26.4]}
23... Rb8 {[%clk 0:03:18.2]} 24. Rxb8 {[%clk 0:03:22.5]} 24... Qxb8 {[%clk
0:03:16.3]} 25. Bd3 {[%clk 0:03:17]} 25... Bxa4 {[%clk 0:03:12.8]} 26. Rc1
{[%clk 0:03:07]} 26... h6 {[%clk 0:03:06.2]} 27. Nf3 {[%clk 0:03:03.4]} 27...
Ne4 {[%clk 0:02:59.8]} 28. Bxe4 {[%clk 0:02:59.8]} 28... dxe4 {[%clk 0:02:58.8]}
29. Ne5 {[%clk 0:02:55.4]} 29... Qxe5 {[%clk 0:02:55.2]} 30. Rc8+ {[%clk
0:02:46.6]} 30... Be8 {[%clk 0:02:51.1]} 31. g3 {[%clk 0:02:34.8]} 31... e3
{[%clk 0:02:44.9]} 32. fxe3 {[%clk 0:02:29.8]} 32... Qxe3+ {[%clk 0:02:43.3]}
33. Kg2 {[%clk 0:02:25.3]} 33... Kf8 {[%clk 0:02:38.6]} 34. Nf4 {[%clk
0:02:20.5]} 34... Bb6 {[%clk 0:02:23.9]} 35. Nd5 {[%clk 0:02:14.7]} 35... Qf2+
{[%clk 0:02:21.7]} 36. Kh1 {[%clk 0:02:05.4]} 36... Qg1# {[%clk 0:02:18]} 0-1

[Event "Live Chess"]
[Site "Chess.com"]
[Date "2024.06.01"]
[Round "-"]
[White "peteopeteo"]
[Black "Tushinskiy"]
[Result "0-1"]
[WhiteElo "1599"]
[BlackElo "2246"]
[TimeControl "300"]
[EndTime "12:24:37 PDT"]
[Termination "Tushinskiy won by resignation"]

1. e4 {[%clk 0:04:59.6]} 1... e5 {[%clk 0:04:58.5]} 2. Nf3 {[%clk 0:04:58.6]}
2... d6 {[%clk 0:04:58.4]} 3. d4 {[%clk 0:04:57.7]} 3... Bg4 {[%clk 0:04:58.3]}
4. dxe5 {[%clk 0:04:57.2]} 4... Nd7 {[%clk 0:04:55.5]} 5. Be2 {[%clk 0:04:53]}
5... dxe5 {[%clk 0:04:54.1]} 6. h3 {[%clk 0:04:51.6]} 6... Bh5 {[%clk 0:04:53]}
7. O-O {[%clk 0:04:50.7]} 7... Ngf6 {[%clk 0:04:49.1]} 8. Nc3 {[%clk 0:04:49.4]}
8... c6 {[%clk 0:04:48.4]} 9. Bg5 {[%clk 0:04:46.8]} 9... Be7 {[%clk 0:04:47.6]}
10. Qd2 {[%clk 0:04:30.7]} 10... Qc7 {[%clk 0:04:46]} 11. Rad1 {[%clk
0:04:26.9]} 11... O-O {[%clk 0:04:44.7]} 12. Be3 {[%clk 0:04:21.2]} 12... Rad8
{[%clk 0:04:43]} 13. Qc1 {[%clk 0:04:18.7]} 13... Nc5 {[%clk 0:04:41.5]} 14. Bd3
{[%clk 0:03:43.1]} 14... Bxf3 {[%clk 0:04:38.9]} 15. gxf3 {[%clk 0:03:43]} 15...
Ne6 {[%clk 0:04:38]} 16. Ne2 {[%clk 0:03:33.4]} 16... b5 {[%clk 0:04:35.3]} 17.
Ng3 {[%clk 0:03:32.1]} 17... a6 {[%clk 0:04:32.8]} 18. Nf5 {[%clk 0:03:31.3]}
18... Bc5 {[%clk 0:04:28.5]} 19. Kh1 {[%clk 0:03:23.7]} 19... Bxe3 {[%clk
0:04:27]} 20. Qxe3 {[%clk 0:03:23.6]} 20... g6 {[%clk 0:04:26.2]} 21. Rg1 {[%clk
0:03:22.5]} 21... Nf4 {[%clk 0:04:23.9]} 22. h4 {[%clk 0:03:07.8]} 22... c5
{[%clk 0:04:21.7]} 23. Bf1 {[%clk 0:02:57.6]} 23... Rxd1 {[%clk 0:04:19.4]} 24.
Bg2 {[%clk 0:02:47.7]} 24... Rxg1+ {[%clk 0:04:19.3]} 25. Kxg1 {[%clk
0:02:47.4]} 25... gxf5 {[%clk 0:04:15.4]} 26. exf5 {[%clk 0:02:44.4]} 26... Qd6
{[%clk 0:04:12.3]} 27. Kh2 {[%clk 0:02:41.9]} 27... N6h5 {[%clk 0:04:06.3]} 28.
Bh3 {[%clk 0:02:39.8]} 28... Kh8 {[%clk 0:04:03.6]} 29. Qe4 {[%clk 0:02:36.9]}
29... Qd4 {[%clk 0:04:01.1]} 30. Qc6 {[%clk 0:02:32.5]} 30... Qxf2+ {[%clk
0:03:59.5]} 31. Kh1 {[%clk 0:02:31.6]} 31... Qxf3+ {[%clk 0:03:56.4]} 32. Bg2
{[%clk 0:02:30.2]} 0-1

[Event "Live Chess"]
[Site "Chess.com"]
[Date "2024.06.01"]
[Round "-"]
[White "NAZRIZ1977"]
[Black "NottheBishopSacrifice"]
[Result "1-0"]
[WhiteElo "2140"]
[BlackElo "2269"]
[TimeControl "300"]
[EndTime "12:24:43 PDT"]
[Termination "NAZRIZ1977 won by resignation"]

1. d4 {[%clk 0:04:56.9]} 1... d5 {[%clk 0:04:49]} 2. Nc3 {[%clk 0:04:55.2]} 2...
Nf6 {[%clk 0:04:38.9]} 3. Bf4 {[%clk 0:04:52.8]} 3... c5 {[%clk 0:04:38.3]} 4.
e3 {[%clk 0:04:51.2]} 4... cxd4 {[%clk 0:04:34.8]} 5. exd4 {[%clk 0:04:50]} 5...
Bg4 {[%clk 0:04:33.9]} 6. f3 {[%clk 0:04:40.5]} 6... Bd7 {[%clk 0:04:33]} 7. Bd3
{[%clk 0:04:37.2]} 7... e6 {[%clk 0:04:31.8]} 8. Nge2 {[%clk 0:04:36.7]} 8...
Nc6 {[%clk 0:04:30.5]} 9. O-O {[%clk 0:04:32.9]} 9... Qb6 {[%clk 0:04:25.9]} 10.
Na4 {[%clk 0:04:24.7]} 10... Qa5 {[%clk 0:04:21.5]} 11. c3 {[%clk 0:04:22.4]}
11... Be7 {[%clk 0:04:21.1]} 12. b4 {[%clk 0:04:19.7]} 12... Qd8 {[%clk
0:04:18.2]} 13. Nc5 {[%clk 0:04:16.6]} 13... b6 {[%clk 0:04:15.4]} 14. Nxd7
{[%clk 0:04:14.5]} 14... Qxd7 {[%clk 0:04:14]} 15. Bb5 {[%clk 0:04:13.5]} 15...
O-O {[%clk 0:04:11.6]} 16. Qa4 {[%clk 0:04:11.5]} 16... Rac8 {[%clk 0:04:05.7]}
17. Rac1 {[%clk 0:04:09.8]} 17... Bd6 {[%clk 0:04:02.9]} 18. Bg5 {[%clk
0:04:04.9]} 18... Be7 {[%clk 0:03:58.1]} 19. c4 {[%clk 0:04:00.6]} 19... a6
{[%clk 0:03:42.7]} 20. Qxa6 {[%clk 0:03:58.2]} 20... dxc4 {[%clk 0:03:41.8]} 21.
Rxc4 {[%clk 0:03:55.6]} 21... Qd5 {[%clk 0:03:38.6]} 22. Bxf6 {[%clk 0:03:40.5]}
22... Bxf6 {[%clk 0:03:38.5]} 23. Rfc1 {[%clk 0:03:27.3]} 23... Nxd4 {[%clk
0:03:31.3]} 24. Rxc8 {[%clk 0:03:14]} 24... Nxe2+ {[%clk 0:03:28.8]} 25. Bxe2
{[%clk 0:03:12.8]} 1-0